bitfinex-derivatives/quotes_ETHF0:USTF0_20241231
["timestamp","ask_amount","ask_price","bid_price","bid_amount"]
[1735607504348,3.45734575,3320.8,3320.5,3.2078]
[1735607504542,0.30166,3320.7,3320.6,3.7336]
[1735607504746,3.45734575,3320.8,3320.6,3.7336]
[1735607504949,0.30166,3320.7,3320.6,3.7336]
[1735607514258,0.75436335,3320.7,3320.6,3.7336]
[1735607515151,0.45270335,3320.7,3320.6,7.24307]
[1735607515351,5.08255861,3320.7,3320.6,6.9414]
[1735607515551,5.38421861,3320.7,3320.6,6.9414]
[1735607516561,4.22759934,3320.7,3320.6,6.9414]
[1735607518262,4.22759934,3320.7,3320.6,8.2124]
[1735607518463,8.92593934,3320.7,3319.8,3.2078]
[1735607518660,0.30174,3319.9,3319.8,3.2078]
[1735607521661,3.47301576,3320.1,3319.8,3.2078]
[1735607521861,0.30174,3319.9,3319.8,3.2078]
[1735607522466,0.30182,3319.0,3318.9,9.37997226]
[1735607522764,2.60635526,3319.0,3318.9,9.37997226]
[1735607523278,9.91089052,3319.0,3318.9,5.84656226]
[1735607523569,9.91089052,3319.0,3318.7,1.2406349]
[1735607523570,0.30184,3318.8,3318.7,1.2406349]
[1735607523866,0.30187,3318.4,3318.3,14.05476864]
[1735607524063,5.81420526,3318.4,3318.3,10.93920655]
[1735607524264,5.81420526,3318.4,3318.1,27.90144832]
[1735607524265,10.51233526,3318.4,3318.1,7.1147932]
[1735607524565,0.30197,3317.3,3317.2,9.67286655]
[1735607525664,0.30202,3316.8,3316.7,3.2078]
[1735607525859,0.30202,3316.8,3316.3,0.30206]
[1735607525860,0.30201,3316.9,3316.6,1.274]
[1735607526061,3.2078,3317.1,3316.6,1.274]
[1735607526263,0.45279403,3317.3,3316.8,0.30202]
[1735607526461,3.45944272,3317.2,3316.7,3.2078]
[1735607526867,3.45944272,3317.2,3317.1,0.30199]
[1735607527072,4.62985526,3317.6,3317.5,0.30195]
[1735607527271,4.62985526,3317.6,3317.5,1.57595]
[1735607527468,3.2078,3317.9,3317.6,0.30194]
[1735607527665,4.62985526,3318.2,3317.8,0.30193]
[1735607527871,4.62985526,3318.2,3318.1,0.3019]
[1735607528167,4.62985526,3318.2,3317.9,3.2078]
[1735607528471,2.30453526,3318.7,3317.9,3.2078]
[1735607528472,6.93439052,3318.7,3317.9,3.2078]
[1735607528967,6.93439052,3318.7,3318.0,1.8556]
[1735607529270,4.62985526,3318.7,3318.0,1.8556]
[1735607529570,0.30184,3318.8,3318.0,1.8556]
[1735607530265,0.30184,3318.8,3318.1,1.8657]
[1735607530664,3.50963,3318.9,3318.1,2.1676]
[1735607530973,3.2078,3318.9,3318.4,0.30187]
[1735607531173,3.2078,3318.9,3318.5,1.275]
[1735607532673,3.2078,3318.9,3318.6,40.8]
[1735607533074,3.2078,3319.4,3318.6,40.8]
[1735607533274,0.30183,3318.9,3318.6,40.8]
[1735607533573,3.2078,3318.8,3317.4,3.2078]
[1735607533774,5.0,3318.9,3317.4,3.2078]
[1735607533775,3.2078,3318.3,3317.8,3.2078]
[1735607533972,3.2078,3318.3,3317.8,3.50972]
[1735607534271,0.30188,3318.3,3317.8,3.2078]
[1735607534483,0.3019,3318.1,3317.8,3.2078]
[1735607534772,3.2078,3318.7,3317.9,1.275]
[1735607534973,0.30189,3318.3,3318.0,1.275]
[1735607535376,0.3019,3318.1,3318.0,1.275]
[1735607535577,3.2078,3318.3,3317.7,1.7877]
[1735607535780,0.30193,3317.8,3317.7,1.7877]
[1735607536079,0.30195,3317.6,3317.5,1.275]
[1735607536282,0.30193,3317.8,3317.4,2.11236]
[1735607536484,0.30192,3317.9,3317.5,1.57695]
[1735607536679,0.30193,3317.8,3317.5,3.1381]
[1735607536984,3.50971,3318.0,3317.6,0.30194]
[1735607537184,3.2078,3318.0,3317.6,0.30194]
[1735607537378,0.30192,3317.9,3317.6,0.30194]
[1735607537783,0.30193,3317.8,3317.5,3.44005]
[1735607538288,3.2078,3318.0,3317.5,3.1381]
[1735607538484,3.2078,3318.4,3317.5,3.1381]
[1735607538974,0.30195,3317.6,3317.5,3.1381]
[1735607539174,3.2078,3318.4,3317.5,3.1381]
[1735607539384,0.30192,3317.9,3317.6,0.30194]
[1735607539582,3.2078,3318.4,3317.7,40.8]
[1735607539784,3.2078,3318.4,3317.7,41.10193]
[1735607539977,3.2078,3318.4,3317.7,40.8]
[1735607540285,3.2078,3318.4,3317.7,41.10193]
[1735607540484,3.2078,3318.4,3317.7,44.0078]
[1735607540687,3.50968,3318.4,3318.2,0.30189]
[1735607540880,3.50968,3318.4,3318.3,4.972]
[1735607541487,3.2078,3319.1,3318.3,8.1798]
[1735607541977,0.30183,3318.9,3318.3,8.1798]
[1735607542174,3.2078,3319.6,3318.7,3.2078]
[1735607542381,3.2078,3319.6,3319.0,0.30181]
[1735607542382,0.30179,3319.3,3319.0,0.30181]
[1735607542578,3.2078,3319.6,3319.1,1.8552]
[1735607542784,3.2078,3319.6,3319.2,0.30179]
[1735607542785,0.30179,3319.4,3319.2,0.30179]
[1735607542973,0.30179,3319.3,3319.2,1.7991]
[1735607543179,3.2078,3319.6,3319.2,3.0741]
[1735607543378,0.30179,3319.3,3319.2,3.0741]
[1735607544081,0.30179,3319.3,3319.2,1.275]
[1735607544281,0.30179,3319.4,3319.2,1.275]
[1735607544686,0.30178,3319.5,3319.2,1.5768]
[1735607544985,2.97036804,3319.8,3319.2,1.275]
[1735607545186,0.30179,3319.3,3319.2,1.275]
[1735607546786,3.72474804,3319.8,3318.9,1.57683]
[1735607547090,0.3018,3319.3,3319.0,0.30181]
[1735607547284,0.3018,3319.2,3319.0,2.14081]
[1735607547681,0.3018,3319.3,3319.1,0.3018]
[1735607548185,3.96215,3320.0,3319.0,1.839]
[1735607548489,0.30179,3319.3,3319.1,0.30181]
[1735607549087,3.96215,3320.0,3319.0,1.839]
[1735607549381,0.30181,3319.1,3319.0,1.839]
[1735607550692,0.30181,3319.1,3319.0,2.14082]
[1735607550884,0.75439,3319.7,3319.0,1.839]
[1735607551083,0.3018,3319.2,3319.1,0.30181]
[1735607551285,0.3018,3319.2,3319.0,3.41481]
[1735607551588,3.2078,3319.6,3318.8,3.0713]
[1735607551888,0.30181,3319.2,3319.0,0.30181]
[1735607552080,0.30182,3319.0,3318.9,0.30182]
[1735607552490,0.30183,3318.9,3318.8,6.6398]
[1735607553581,0.30182,3319.0,3318.9,0.30182]
[1735607554091,0.30178,3319.4,3319.0,0.30181]
[1735607554283,0.30181,3319.2,3319.0,0.30181]
[1735607554480,0.30181,3319.2,3319.1,0.30181]
[1735607554686,2.30617375,3319.5,3318.9,1.274]
[1735607554687,0.30182,3319.0,3318.9,1.57583]
[1735607554885,0.30182,3319.0,3318.9,1.274]
[1735607555989,0.30182,3319.0,3318.9,1.57583]
[1735607556191,0.30181,3319.1,3319.0,0.30182]
[1735607556395,0.3018,3319.2,3319.1,0.30181]
[1735607556687,0.30183,3318.9,3318.8,40.8]
[1735607556888,2.30617375,3318.9,3318.2,1.268]
[1735607557193,2.30617375,3318.9,3318.4,0.30187]
[1735607557194,0.30187,3318.5,3318.4,0.30187]
[1735607557885,0.30187,3318.4,3318.3,41.10188]
[1735607558189,0.30187,3318.5,3318.4,0.30187]
[1735607558583,0.30187,3318.5,3318.3,40.8]
[1735607558584,2.30617375,3318.9,3318.3,40.8]
[1735607558792,0.30186,3318.6,3318.5,0.30186]
[1735607558981,6.26848375,3319.2,3318.3,40.8]
[1735607559180,0.30184,3318.8,3318.6,0.30185]
[1735607559489,0.30184,3318.8,3318.7,1.7752]
[1735607559887,0.30187,3318.4,3318.3,40.8]
[1735607560491,0.30184,3318.8,3318.3,40.8]
[1735607560691,0.30185,3318.7,3318.3,40.8]
[1735607560990,0.30187,3318.4,3318.3,40.8]
[1735607561590,2.30617375,3318.9,3318.3,41.10188]
[1735607561787,0.30186,3318.6,3318.3,41.10188]
[1735607561987,2.30617375,3318.9,3318.3,40.8]
[1735607562188,0.30187,3318.4,3318.3,40.8]
[1735607562693,0.30187,3318.4,3318.2,1.268]
[1735607562694,2.30617375,3318.6,3318.2,1.268]
[1735607562989,0.30189,3318.2,3318.1,1.7752]
[1735607563491,0.30189,3318.2,3318.1,3.0432]
[1735607564088,4.06707375,3318.6,3318.1,3.0432]
[1735607564490,0.30189,3318.3,3318.1,3.0432]
[1735607564691,1.7609,3318.6,3317.9,40.8]
[1735607564885,0.30192,3317.9,3317.7,4.77773]
[1735607565083,0.30193,3317.8,3317.7,4.4758]
[1735607565283,0.30193,3317.8,3317.3,3.5733]
[1735607565284,0.30194,3317.7,3317.6,40.8]
[1735607565485,2.11084,3317.7,3317.6,40.8]
[1735607566496,0.30194,3317.7,3317.6,40.8]
[1735607566689,1.8089,3318.2,3317.6,40.8]
[1735607566895,0.3019,3318.2,3317.7,1.868]
[1735607567095,0.3019,3318.2,3317.9,0.30191]
[1735607567295,0.3019,3318.2,3317.8,1.7516]
[1735607567595,0.3019,3318.2,3318.0,0.30191]
[1735607567794,3.50969,3318.3,3318.1,0.3019]
[1735607567997,0.30189,3318.2,3318.0,0.3019]
[1735607568389,0.3019,3318.1,3317.9,2.16061]
[1735607568893,3.2078,3318.3,3317.9,2.16061]
[1735607568894,0.3019,3318.2,3317.9,2.16061]
[1735607569093,0.3019,3318.2,3317.9,3.42861]
[1735607569799,0.3019,3318.1,3317.9,3.1267]
[1735607570486,0.30191,3318.0,3317.9,3.1267]
[1735607571188,0.30191,3318.0,3317.9,1.268]
[1735607571588,5.51397375,3318.3,3317.8,1.7516]
[1735607571589,0.30192,3317.9,3317.8,1.7516]
[1735607572492,3.2078,3318.3,3317.8,1.7516]
[1735607572689,3.2078,3318.3,3317.8,3.6536]
[1735607572996,3.2078,3318.3,3318.0,0.3019]
[1735607573194,3.2078,3318.3,3317.9,40.8]
[1735607573399,4.93170526,3318.6,3317.9,40.8]
[1735607573898,4.62985526,3318.6,3318.2,2.30617375]
[1735607574202,1.77355526,3318.6,3318.5,0.30186]
[1735607574402,5.78731908,3318.9,3318.8,0.30184]
[1735607575004,5.78731908,3318.9,3318.6,5.0766]
[1735607575005,0.30178,3319.5,3319.1,0.3018]
[1735607575189,9.29687908,3319.7,3319.2,1.268]
[1735607575391,8.99511908,3319.7,3319.6,0.30176]
[1735607575892,5.78731908,3319.7,3319.5,0.30176]
[1735607576105,5.78731908,3319.7,3319.4,0.30178]
[1735607576295,0.30175,3319.8,3319.5,0.30177]
[1735607576796,3.2078,3320.2,3319.4,3.2078]
[1735607577000,3.2078,3320.2,3319.4,5.51397375]
[1735607577298,3.2078,3320.2,3320.1,0.30172]
[1735607577892,0.3017,3320.3,3320.0,1.56972]
[1735607578900,6.8228,3320.6,3320.0,1.268]
[1735607579100,0.30172,3320.2,3320.0,1.268]
[1735607579600,5.0444,3320.6,3320.1,0.30171]
[1735607579795,0.3017,3320.4,3320.1,0.30171]
[1735607579989,0.30168,3320.5,3320.0,1.56972]
[1735607580190,0.3017,3320.4,3320.0,1.268]
[1735607580496,3.2078,3321.1,3320.8,0.30165]
[1735607580699,3.2078,3321.1,3320.8,1.268]
[1735607580999,0.30165,3320.9,3320.8,1.268]
[1735607582996,0.30164,3321.0,3320.8,1.268]
[1735607583196,0.30165,3320.9,3320.8,1.268]
[1735607584004,3.2078,3321.1,3320.8,1.268]
[1735607584005,0.30164,3321.0,3320.8,1.268]
[1735607584303,0.30165,3320.9,3320.8,1.268]
[1735607584498,0.30164,3321.0,3320.8,1.268]
[1735607584704,3.50943,3321.1,3320.8,1.268]
[1735607585095,3.2078,3321.1,3320.8,1.268]
[1735607585292,3.2078,3321.1,3321.0,0.30164]
[1735607585697,3.2078,3321.9,3321.5,0.30158]
[1735607585899,3.2078,3321.9,3321.6,1.56858]
[1735607586104,3.2078,3321.9,3321.6,1.267]
[1735607586307,3.2078,3321.9,3321.6,1.56858]
[1735607586499,3.2078,3321.9,3321.6,1.267]
[1735607586699,3.2078,3321.9,3321.8,0.30156]
[1735607586905,3.2078,3322.3,3322.1,0.30153]
[1735607587210,8.75452985,3322.8,3322.2,0.30152]
[1735607587211,0.30148,3322.7,3322.2,0.30152]
[1735607587506,0.30149,3322.7,3322.2,0.30153]
[1735607587897,6.67125455,3323.0,3322.0,3.2078]
[1735607588098,6.67125455,3323.0,3322.1,1.7466]
[1735607588299,6.67125455,3323.0,3322.6,0.30148]
[1735607588503,6.97271455,3323.0,3322.7,1.274]
[1735607588908,6.67125455,3323.0,3322.7,1.274]
[1735607589300,6.67125455,3323.0,3322.8,0.30147]
[1735607589601,0.30144,3323.2,3322.8,0.30147]
[1735607589802,0.30146,3323.0,3322.7,1.274]
[1735607590304,6.17501077,3323.6,3322.7,1.274]
[1735607590506,0.30146,3323.0,3322.7,1.274]
[1735607591003,0.30147,3322.9,3322.7,1.274]
[1735607591203,3.2078,3323.2,3322.7,1.274]
[1735607591406,0.30147,3322.9,3322.7,1.274]
[1735607591801,0.30147,3322.9,3322.8,40.8]
[1735607593209,3.2078,3323.2,3322.7,1.274]
[1735607593404,0.30145,3323.1,3322.7,1.57548]
[1735607593601,3.2078,3323.2,3322.7,1.274]
[1735607593807,3.2078,3323.2,3322.8,0.30147]
[1735607594305,0.3015,3322.5,3322.2,3.6507]
[1735607594510,0.30152,3322.3,3322.2,1.8103]
[1735607594806,3.2078,3322.4,3322.0,3.2078]
[1735607595015,3.2078,3322.4,3321.4,2.1751]
[1735607595016,6.17501077,3322.4,3321.4,1.274]
[1735607595310,0.3016,3321.5,3321.4,1.274]
[1735607595508,3.2078,3322.1,3321.4,1.274]
[1735607595810,0.30159,3321.5,3321.4,1.274]
[1735607596112,0.30159,3321.6,3321.4,1.274]
[1735607596412,3.2078,3322.1,3321.4,1.274]
[1735607596705,0.30159,3321.5,3321.4,1.274]
[1735607596905,1.8316,3322.0,3321.4,1.274]
[1735607597111,0.30158,3321.6,3321.4,1.274]
[1735607597408,1.8316,3322.0,3321.4,1.274]
[1735607597606,1.8316,3322.0,3321.6,0.30158]
[1735607597809,0.30155,3322.0,3321.5,0.30159]
[1735607598007,0.30156,3321.9,3321.6,0.30158]
[1735607598606,3.2078,3322.1,3321.4,1.274]
[1735607598807,0.30155,3322.0,3321.4,1.274]
[1735607599012,0.30157,3321.8,3321.5,0.30159]
[1735607599607,0.30155,3322.0,3321.4,1.274]
[1735607599814,3.2078,3322.5,3321.7,3.2078]
[1735607600109,0.30151,3322.4,3321.9,0.30155]
[1735607600305,3.2078,3322.5,3321.9,0.30155]
[1735607600306,0.30153,3322.2,3321.9,0.30155]
[1735607600607,3.50931,3322.5,3322.2,0.30152]
[1735607600811,3.2078,3322.5,3322.2,1.274]
[1735607601008,3.2078,3322.5,3322.4,0.30151]
[1735607601207,0.30148,3322.7,3322.2,1.274]
[1735607601503,0.30148,3322.8,3322.5,0.3015]
[1735607601910,3.2078,3323.0,3322.4,40.8]
[1735607602107,0.3015,3322.6,3322.4,40.8]
[1735607602307,3.2078,3323.0,3322.1,3.2078]
[1735607602512,2.96721077,3322.8,3322.1,3.50933]
[1735607602804,0.30151,3322.4,3322.2,40.8]
[1735607603007,0.30152,3322.3,3322.2,40.8]
[1735607603402,0.30156,3321.8,3321.7,4.4818]
[1735607603602,3.72100077,3322.4,3321.7,4.4818]
[1735607603603,2.96721077,3322.4,3321.7,4.4818]
[1735607603809,0.30155,3322.0,3321.7,3.2078]
[1735607604011,0.30156,3321.9,3321.7,4.4818]
[1735607604209,1.8735,3322.3,3320.3,3.2078]
[1735607604210,6.17501077,3321.8,3320.3,3.2078]
[1735607604408,6.8735,3322.3,3320.3,3.2078]
[1735607604409,3.2078,3321.2,3320.3,3.2078]
[1735607604714,0.30169,3320.5,3320.4,40.8]
[1735607605107,3.2078,3320.8,3320.4,40.8]
[1735607605515,0.30168,3320.6,3320.4,40.8]
[1735607606215,0.30168,3320.5,3320.4,40.8]
[1735607607614,0.30168,3320.6,3320.4,42.37569]
[1735607607816,3.2078,3320.8,3320.4,42.074]
[1735607608016,0.30166,3320.7,3320.5,0.30168]
[1735607608212,0.30166,3320.7,3320.4,42.074]
[1735607608213,3.2078,3321.4,3320.6,3.2078]
[1735607608412,0.30161,3321.3,3321.0,0.30163]
[1735607608720,0.30163,3321.1,3320.9,0.30164]
[1735607609217,0.30161,3321.3,3320.8,0.30165]
[1735607609518,0.30162,3321.2,3320.9,0.30164]
[1735607609714,3.2078,3321.4,3320.7,1.274]
[1735607609914,3.2078,3321.4,3321.3,0.30161]
[1735607610314,0.30156,3321.9,3321.6,0.30158]
[1735607610520,0.30156,3321.9,3321.7,40.8]
[1735607611125,3.2078,3322.0,3321.7,40.8]
[1735607611515,3.2078,3322.0,3321.9,0.30155]
[1735607611719,3.2078,3322.4,3321.6,4.4818]
[1735607612214,3.2078,3322.4,3321.7,0.30157]
[1735607612215,0.30153,3322.3,3321.7,0.30157]
[1735607612421,3.2078,3322.4,3321.6,4.4818]
[1735607612620,0.30153,3322.2,3321.8,0.30156]
[1735607612824,0.30155,3322.0,3321.7,41.10157]
[1735607613021,3.2078,3322.4,3321.7,40.8]
[1735607613326,3.2078,3322.4,3321.6,4.4818]
[1735607613327,3.2078,3322.0,3321.6,1.274]
[1735607613623,3.50935,3322.0,3321.7,0.30157]
[1735607613925,3.50935,3322.0,3321.6,42.074]
[1735607613926,3.2078,3322.0,3321.6,42.074]
[1735607614423,3.2078,3322.0,3321.8,0.30156]
[1735607615519,3.2078,3322.0,3321.6,42.074]
[1735607615720,0.30157,3321.8,3321.6,1.274]
[1735607615924,3.2078,3322.4,3321.2,3.2078]
[1735607616122,3.2078,3322.0,3321.3,1.274]
[1735607616319,3.2078,3322.0,3321.6,0.30158]
[1735607616320,0.30156,3321.9,3321.6,0.30158]
[1735607616621,3.2078,3322.4,3321.3,1.274]
[1735607616817,3.2078,3322.4,3321.6,3.2078]
[1735607617015,6.17501077,3323.0,3322.0,3.2078]
[1735607617211,6.17501077,3323.0,3322.1,3.0951]
[1735607617420,0.30148,3322.8,3322.5,0.3015]
[1735607617816,0.30147,3322.9,3322.6,0.30149]
[1735607618323,0.30147,3322.9,3322.6,0.30148]
[1735607618815,3.2078,3323.0,3322.4,3.2078]
[1735607619016,3.46345455,3323.5,3323.1,0.30144]
[1735607619321,3.2078,3323.6,3323.0,1.3]
[1735607619725,3.2078,3323.6,3323.1,40.8]
[1735607620023,3.2078,3323.6,3323.3,0.30142]
[1735607620024,3.5092,3323.6,3323.3,0.30142]
[1735607620219,3.2078,3323.6,3323.1,40.8]
[1735607620618,3.2078,3323.6,3323.3,0.30143]
[1735607620619,3.5092,3323.6,3323.3,0.30143]
[1735607620815,3.2078,3323.6,3323.3,0.30143]
[1735607621020,3.5092,3323.6,3323.3,0.30143]
[1735607621618,3.5092,3323.6,3323.2,0.30143]
[1735607621819,0.30141,3323.5,3323.2,0.30143]
[1735607622128,3.5092,3323.6,3323.3,0.30142]
[1735607622316,3.2078,3323.6,3323.1,40.8]
[1735607622517,3.2078,3323.6,3323.4,0.30142]
[1735607622722,3.2078,3323.6,3323.4,0.30141]
[1735607623225,0.30141,3323.5,3323.3,0.30142]
[1735607623624,0.30141,3323.6,3323.3,0.30142]
[1735607624123,0.30141,3323.5,3323.3,0.30142]
[1735607625139,1.8434,3323.9,3323.2,3.2078]
[1735607625422,0.30143,3323.3,3323.2,3.2078]
[1735607625623,0.30141,3323.6,3323.4,0.30141]
[1735607626025,3.2078,3324.0,3323.2,3.2078]
[1735607626226,2.30640749,3323.8,3323.5,0.3014]
[1735607626426,2.30640749,3323.8,3323.7,0.30139]
[1735607627321,2.30640749,3323.8,3323.7,2.15459]
[1735607627523,0.30134,3324.3,3324.1,0.30135]
[1735607627724,2.30640749,3324.5,3323.7,1.8532]
[1735607627725,2.30640749,3324.5,3324.2,1.299]
[1735607627927,2.60772749,3324.5,3324.2,1.60034]
[1735607628628,2.30640749,3324.5,3324.2,1.299]
[1735607628820,2.30640749,3324.5,3324.2,1.60034]
[1735607629021,0.30132,3324.6,3324.2,1.60034]
[1735607629223,3.50913,3324.4,3324.2,1.299]
[1735607630029,0.30133,3324.4,3324.2,1.299]
[1735607630428,3.2078,3324.8,3324.2,1.299]
[1735607630733,0.30134,3324.3,3324.2,1.299]
[1735607632434,3.2078,3324.4,3323.6,3.2078]
[1735607632626,0.30138,3323.8,3323.6,4.8082]
[1735607632827,0.30138,3323.8,3323.6,4.5068]
[1735607633029,0.30139,3323.7,3323.6,4.5068]
[1735607633428,0.30139,3323.8,3323.6,4.5068]
[1735607633735,1.8982,3324.3,3323.6,4.5068]
[1735607633936,0.30134,3324.3,3324.0,0.30136]
[1735607634130,3.2078,3324.4,3323.6,4.5068]
[1735607634328,3.2078,3324.4,3324.3,0.30134]
[1735607634933,3.2078,3324.8,3324.7,0.3013]
[1735607635131,2.60769749,3324.9,3324.7,0.3013]
[1735607635132,2.60769749,3324.9,3324.7,1.6003]
[1735607635435,2.30640749,3324.9,3324.7,1.299]
[1735607635629,2.30640749,3324.9,3324.8,0.30129]
[1735607635836,2.30640749,3324.9,3324.7,1.299]
[1735607635837,3.2078,3325.4,3324.7,1.299]
[1735607636032,0.30129,3324.8,3324.7,1.299]
[1735607636437,0.30129,3324.9,3324.7,1.299]
[1735607636636,0.30126,3325.2,3324.7,1.299]
[1735607636930,3.2078,3325.4,3324.7,1.299]
[1735607636931,3.2078,3325.4,3325.1,0.30126]
[1735607637133,0.30125,3325.3,3325.0,0.30127]
[1735607637335,0.30125,3325.3,3324.8,3.2078]
[1735607637529,0.30125,3325.3,3325.0,0.30127]
[1735607637726,0.30125,3325.3,3324.8,3.2078]
[1735607637931,0.30128,3325.0,3324.8,3.2078]
[1735607638534,3.2078,3325.4,3324.9,40.8]
[1735607638941,0.30127,3325.1,3324.9,40.8]
[1735607639233,0.30127,3325.0,3324.9,40.8]
[1735607639438,0.30127,3325.0,3324.9,42.099]
[1735607639935,3.2078,3325.4,3324.9,42.099]
[1735607640340,0.30122,3325.6,3324.9,42.099]
[1735607640642,0.30122,3325.6,3325.3,0.30124]
[1735607640939,0.30123,3325.5,3325.3,0.30124]
[1735607641140,3.2078,3325.8,3325.2,3.2078]
[1735607641728,2.30640749,3326.2,3326.1,0.30117]
[1735607641933,6.66136698,3326.5,3326.1,1.299]
[1735607641934,1.7806,3326.5,3326.1,1.299]
[1735607642144,0.30116,3326.2,3326.1,1.299]
[1735607642432,0.30114,3326.6,3326.2,0.30116]
[1735607642633,5.51420749,3326.7,3326.1,4.5068]
[1735607642834,2.30640749,3326.7,3326.6,0.30113]
[1735607643537,2.30640749,3326.7,3326.6,3.50893]
[1735607643733,0.30107,3327.3,3326.9,0.30109]
[1735607643941,5.51420749,3327.5,3327.0,1.298]
[1735607643942,0.30108,3327.2,3327.0,1.298]
[1735607644134,5.51420749,3327.5,3327.0,1.298]
[1735607644342,5.51420749,3327.5,3327.0,42.098]
[1735607644743,5.51420749,3327.5,3327.0,1.298]
[1735607644941,0.30108,3327.1,3327.0,1.298]
[1735607645245,3.2078,3327.5,3327.0,1.298]
[1735607645540,0.30107,3327.3,3327.0,1.298]
[1735607645735,3.2078,3327.5,3327.0,1.298]
[1735607645942,0.30108,3327.1,3327.0,1.298]
[1735607646338,3.50888,3327.1,3327.0,1.298]
[1735607646540,0.30108,3327.1,3327.0,1.298]
[1735607646937,0.30108,3327.2,3327.0,1.298]
[1735607647339,0.30106,3327.4,3327.0,1.298]
[1735607647643,0.30107,3327.3,3327.0,1.298]
[1735607648342,0.30106,3327.4,3327.0,1.298]
[1735607648539,3.2078,3327.9,3327.6,0.30103]
[1735607648843,0.75237,3328.7,3327.8,3.2078]
[1735607648844,1.9948,3328.6,3327.8,3.2078]
[1735607649043,0.30097,3328.4,3328.0,0.301]
[1735607649239,1.9948,3328.6,3327.9,1.291]
[1735607649438,0.30096,3328.5,3328.1,0.30099]
[1735607649632,0.30096,3328.5,3327.9,1.291]
[1735607649845,0.30095,3328.6,3328.2,0.30098]
[1735607650038,3.2078,3328.7,3328.2,0.30098]
[1735607650244,3.2078,3328.7,3328.0,2.0423]
[1735607650439,3.2078,3328.7,3328.2,3.2078]
[1735607650647,3.2078,3328.7,3328.6,0.30095]
[1735607651351,3.2078,3329.3,3328.6,3.2078]
[1735607651643,3.2078,3329.3,3328.7,1.291]
[1735607651851,0.30093,3328.8,3328.7,1.291]
[1735607652444,0.30093,3328.8,3328.7,42.091]
[1735607652752,0.30093,3328.8,3328.7,1.291]
[1735607653049,1.7882,3329.4,3328.1,44.0078]
[1735607653050,3.2078,3328.9,3328.1,44.0078]
[1735607653243,3.2078,3328.9,3328.1,3.2078]
[1735607653444,3.2078,3328.5,3327.6,1.291]
[1735607653641,0.30103,3327.7,3327.6,1.291]
[1735607655350,0.30103,3327.7,3326.8,3.2078]
[1735607655351,2.024,3327.9,3327.5,0.30104]
[1735607655652,3.5088,3328.0,3327.6,41.10103]
[1735607655653,3.2078,3328.0,3327.6,41.10103]
[1735607656149,3.5088,3328.0,3327.5,0.30104]
[1735607656552,3.5088,3328.0,3327.4,1.291]
[1735607656553,0.0047179,3327.6,3327.4,1.59205]
[1735607657058,0.0047179,3327.6,3327.5,40.8]
[1735607657553,0.3057579,3327.6,3327.4,1.291]
[1735607657755,0.30105,3327.5,3327.4,1.291]
[1735607657953,0.3011,3326.9,3326.7,2.0348]
[1735607658257,3.2078,3327.2,3327.1,0.30108]
[1735607658559,0.0047179,3327.6,3326.8,4.4988]
[1735607658755,3.2078,3327.5,3326.8,4.4988]
[1735607659050,0.3011,3327.0,3326.8,1.291]
[1735607660254,3.2078,3327.1,3326.8,1.291]
[1735607660457,0.3011,3327.0,3326.8,1.291]
[1735607660959,3.2078,3327.1,3327.0,0.30109]
[1735607661145,3.2078,3327.1,3326.8,1.291]
[1735607661550,0.30106,3327.4,3327.1,0.30108]
[1735607662054,3.2125179,3327.6,3327.3,0.30106]
[1735607662055,0.0047179,3327.6,3327.3,0.30106]
[1735607662254,0.0047179,3327.6,3327.0,1.291]
[1735607662255,0.3057579,3327.6,3327.0,1.291]
[1735607662455,0.30106,3327.4,3327.0,1.59209]
[1735607662654,0.30106,3327.4,3327.1,41.10108]
[1735607663057,0.0047179,3327.6,3327.1,41.10108]
[1735607663255,0.0047179,3327.6,3327.1,40.8]
[1735607663961,0.30105,3327.5,3327.1,41.10108]
[1735607664562,0.0047179,3327.6,3327.1,40.8]
[1735607664759,0.0047179,3327.6,3327.2,0.30107]
[1735607664955,0.0047179,3327.6,3327.1,40.8]
[1735607665155,0.0047179,3327.6,3327.3,0.30106]
[1735607665359,0.0047179,3327.6,3327.4,0.30105]
[1735607665561,0.0047179,3327.6,3327.1,40.8]
[1735607665762,0.30107,3327.3,3327.1,40.8]
[1735607665958,0.0047179,3327.6,3327.3,0.30106]
[1735607665959,0.3057579,3327.6,3327.3,0.30106]
[1735607666166,0.3057579,3327.6,3327.3,1.59206]
[1735607666466,0.0047179,3327.6,3327.3,1.291]
[1735607666659,0.30106,3327.4,3327.3,1.291]
[1735607666864,0.30111,3326.9,3326.7,6.5336]
[1735607667168,0.30111,3326.9,3326.7,47.3336]
[1735607667668,0.30111,3326.8,3326.7,42.091]
[1735607667860,0.30116,3326.3,3326.1,1.291]
[1735607668058,0.30116,3326.2,3326.1,1.291]
[1735607668262,3.2078,3326.5,3326.1,1.291]
[1735607668461,0.30116,3326.3,3326.1,1.291]
[1735607668665,3.2078,3326.5,3326.0,1.291]
[1735607669169,0.30115,3326.4,3326.0,1.59218]
[1735607669865,3.2078,3326.5,3326.0,1.291]
[1735607670065,3.2078,3326.5,3326.4,0.30115]
[1735607670266,0.3011,3327.0,3326.7,0.30111]
[1735607670568,3.50889,3327.1,3326.8,0.3011]